[Event "Late-Titled-Tuesday-Blitz-January-23-2024"]
[Site "Chess.com"]
[Date "2024.01.23"]
[Round "7"]
[White "IgorBjelobrk"]
[Black "Elsa167"]
[Result "1-0"]
[WhiteElo "2638"]
[BlackElo "2915"]
[TimeControl "180+1"]
[EndTime "15:15:36 PST"]
[Termination "IgorBjelobrk won on time"]

1. d4 {[%clk 0:02:58.9]} 1... Nf6 {[%clk 0:02:59.7]} 2. c4 {[%clk 0:02:56.4]}
2... g6 {[%clk 0:03:00.1]} 3. Nc3 {[%clk 0:02:55.4]} 3... Bg7 {[%clk 0:03:00.8]}
4. e4 {[%clk 0:02:53.9]} 4... d6 {[%clk 0:03:01.2]} 5. h3 {[%clk 0:02:53.2]}
5... O-O {[%clk 0:03:00.7]} 6. Nf3 {[%clk 0:02:50.1]} 6... e5 {[%clk 0:02:59.1]}
7. d5 {[%clk 0:02:49.9]} 7... a5 {[%clk 0:02:58.2]} 8. g4 {[%clk 0:02:48.2]}
8... Na6 {[%clk 0:02:58.1]} 9. Be3 {[%clk 0:02:41.3]} 9... Nc5 {[%clk
0:02:57.7]} 10. Nd2 {[%clk 0:02:40.6]} 10... c6 {[%clk 0:02:56]} 11. Be2 {[%clk
0:02:39.4]} 11... Bd7 {[%clk 0:02:53.1]} 12. g5 {[%clk 0:02:21.8]} 12... Ne8
{[%clk 0:02:50.5]} 13. h4 {[%clk 0:02:21.9]} 13... f5 {[%clk 0:02:35.9]} 14. h5
{[%clk 0:02:17]} 14... Rf7 {[%clk 0:02:31.7]} 15. hxg6 {[%clk 0:02:12.2]} 15...
hxg6 {[%clk 0:02:31.8]} 16. exf5 {[%clk 0:02:12.5]} 16... Bxf5 {[%clk
0:02:29.1]} 17. Nf1 {[%clk 0:02:06.7]} 17... e4 {[%clk 0:01:56.4]} 18. Ng3
{[%clk 0:01:53.4]} 18... Qb6 {[%clk 0:01:55.4]} 19. Qd2 {[%clk 0:01:20.3]} 19...
a4 {[%clk 0:01:36.3]} 20. Kf1 {[%clk 0:01:09.9]} 20... a3 {[%clk 0:01:24.8]} 21.
b3 {[%clk 0:01:09]} 21... Qb4 {[%clk 0:01:04.1]} 22. Rc1 {[%clk 0:01:08.5]}
22... cxd5 {[%clk 0:00:35]} 23. Nxd5 {[%clk 0:01:07.9]} 23... Qxd2 {[%clk
0:00:34.7]} 24. Bxd2 {[%clk 0:01:08.8]} 24... Nxb3 {[%clk 0:00:31.7]} 25. axb3
{[%clk 0:00:29.1]} 25... a2 {[%clk 0:00:32.6]} 26. Nxf5 {[%clk 0:00:28.6]} 26...
a1=Q {[%clk 0:00:06.4]} 27. Nfe7+ {[%clk 0:00:27.1]} 27... Rxe7 {[%clk
0:00:06.2]} 28. Nxe7+ {[%clk 0:00:27]} 28... Kf7 {[%clk 0:00:06.9]} 29. Rxa1
{[%clk 0:00:23.7]} 29... Rxa1+ {[%clk 0:00:07.8]} 30. Kg2 {[%clk 0:00:21.3]}
30... Rxh1 {[%clk 0:00:08.3]} 31. Kxh1 {[%clk 0:00:18.9]} 31... Kxe7 {[%clk
0:00:08.7]} 32. Kg2 {[%clk 0:00:14.4]} 32... Nc7 {[%clk 0:00:07.9]} 33. f3
{[%clk 0:00:14.2]} 33... exf3+ {[%clk 0:00:01.5]} 34. Kxf3 {[%clk 0:00:15.1]}
34... b5 {[%clk 0:00:02]} 35. cxb5 {[%clk 0:00:14.1]} 35... Bd4 {[%clk 0:00:02]}
36. Ke4 {[%clk 0:00:14]} 36... Bb6 {[%clk 0:00:02.1]} 37. Bc3 {[%clk 0:00:13]}
37... d5+ {[%clk 0:00:02.2]} 38. Kf4 {[%clk 0:00:12.1]} 38... Ne6+ {[%clk
0:00:02.6]} 39. Kg4 {[%clk 0:00:12.5]} 39... d4 {[%clk 0:00:02.5]} 40. Bd2
{[%clk 0:00:12.9]} 40... Kd6 {[%clk 0:00:02.9]} 41. Bc4 {[%clk 0:00:13]} 41...
Nc5 {[%clk 0:00:02.2]} 42. Bb4 {[%clk 0:00:12.5]} 42... Ke5 {[%clk 0:00:02.3]}
43. Bd2 {[%clk 0:00:11.7]} 43... Ne4 {[%clk 0:00:02.6]} 44. Bb4 {[%clk
0:00:11.7]} 44... d3 {[%clk 0:00:02]} 45. Kf3 {[%clk 0:00:11.1]} 45... d2 {[%clk
0:00:01.6]} 46. Ke2 {[%clk 0:00:10.7]} 46... Nxg5 {[%clk 0:00:02.1]} 47. Bxd2
{[%clk 0:00:10.4]} 47... Ne4 {[%clk 0:00:02.6]} 48. Be1 {[%clk 0:00:09.7]} 48...
g5 {[%clk 0:00:03]} 49. Bd3 {[%clk 0:00:09.8]} 49... g4 {[%clk 0:00:02]} 50. b4
{[%clk 0:00:08.6]} 1-0

[Event "Late-Titled-Tuesday-Blitz-January-23-2024"]
[Site "Chess.com"]
[Date "2024.01.23"]
[Round "7"]
[White "mishanick"]
[Black "TigrVShlyape"]
[Result "1-0"]
[WhiteElo "3071"]
[BlackElo "2940"]
[TimeControl "180+1"]
[EndTime "15:15:37 PST"]
[Termination "mishanick won on time"]

1. d4 {[%clk 0:03:00.9]} 1... d5 {[%clk 0:02:48.6]} 2. c4 {[%clk 0:03:01.4]}
2... c6 {[%clk 0:02:48.4]} 3. Nf3 {[%clk 0:03:02.1]} 3... Nf6 {[%clk 0:02:48.2]}
4. Nc3 {[%clk 0:03:02.7]} 4... a6 {[%clk 0:02:46.9]} 5. e3 {[%clk 0:03:01.8]}
5... Bg4 {[%clk 0:02:44.1]} 6. h3 {[%clk 0:03:00.2]} 6... Bxf3 {[%clk
0:02:43.8]} 7. Qxf3 {[%clk 0:03:01.1]} 7... e6 {[%clk 0:02:44.1]} 8. Bd3 {[%clk
0:02:59.8]} 8... Nbd7 {[%clk 0:02:43.1]} 9. O-O {[%clk 0:03:00]} 9... Be7 {[%clk
0:02:43.1]} 10. b3 {[%clk 0:02:56]} 10... O-O {[%clk 0:02:42.2]} 11. Bb2 {[%clk
0:02:56.3]} 11... Re8 {[%clk 0:02:32.3]} 12. Rad1 {[%clk 0:02:53.9]} 12... Qb6
{[%clk 0:02:27]} 13. Qe2 {[%clk 0:02:34.8]} 13... a5 {[%clk 0:02:23.8]} 14. f4
{[%clk 0:02:26.9]} 14... g6 {[%clk 0:01:53.8]} 15. Kh2 {[%clk 0:01:50.3]} 15...
Qc7 {[%clk 0:01:47.3]} 16. Rc1 {[%clk 0:01:46.9]} 16... Qb8 {[%clk 0:01:46.8]}
17. Qf3 {[%clk 0:01:45.3]} 17... Bf8 {[%clk 0:01:40.4]} 18. g4 {[%clk
0:01:39.8]} 18... a4 {[%clk 0:01:29.7]} 19. g5 {[%clk 0:01:10.9]} 19... Nh5
{[%clk 0:01:28.2]} 20. bxa4 {[%clk 0:00:52.1]} 20... Nb6 {[%clk 0:01:21.4]} 21.
cxd5 {[%clk 0:00:42.7]} 21... exd5 {[%clk 0:01:19]} 22. Kg2 {[%clk 0:00:40]}
22... Nxa4 {[%clk 0:01:15.9]} 23. Nxa4 {[%clk 0:00:40.2]} 23... Rxa4 {[%clk
0:01:12.6]} 24. f5 {[%clk 0:00:40.2]} 24... Rxa2 {[%clk 0:01:00.6]} 25. Rc2
{[%clk 0:00:40.3]} 25... Qc7 {[%clk 0:00:58.8]} 26. Rcf2 {[%clk 0:00:35.1]}
26... Bg7 {[%clk 0:00:54.1]} 27. h4 {[%clk 0:00:33.5]} 27... Kh8 {[%clk
0:00:44.8]} 28. Re1 {[%clk 0:00:29.8]} 28... b5 {[%clk 0:00:39.8]} 29. Bb1
{[%clk 0:00:21.2]} 29... Ra4 {[%clk 0:00:36.1]} 30. e4 {[%clk 0:00:14.3]} 30...
Bxd4 {[%clk 0:00:18.5]} 31. fxg6 {[%clk 0:00:05.5]} 31... hxg6 {[%clk
0:00:15.6]} 32. Bxd4+ {[%clk 0:00:01.4]} 32... Rxd4 {[%clk 0:00:15.2]} 33. Qc3
{[%clk 0:00:02.2]} 33... c5 {[%clk 0:00:13]} 34. Ref1 {[%clk 0:00:02.8]} 34...
b4 {[%clk 0:00:10.8]} 35. Qh3 {[%clk 0:00:02.2]} 35... Kg8 {[%clk 0:00:09.7]}
36. Rxf7 {[%clk 0:00:02.3]} 36... Rd2+ {[%clk 0:00:07.6]} 37. Kg1 {[%clk
0:00:02.1]} 37... Qg3+ {[%clk 0:00:06.9]} 38. Qxg3 {[%clk 0:00:02.4]} 38... Nxg3
{[%clk 0:00:07.6]} 39. R1f6 {[%clk 0:00:03.1]} 39... Nh5 {[%clk 0:00:06.7]} 40.
Rf1 {[%clk 0:00:02.9]} 40... Rd1 {[%clk 0:00:04.9]} 41. Rxd1 {[%clk 0:00:02.5]}
41... Kxf7 {[%clk 0:00:04.7]} 42. Rxd5 {[%clk 0:00:03.2]} 42... c4 {[%clk
0:00:04.8]} 43. Rb5 {[%clk 0:00:02.9]} 43... b3 {[%clk 0:00:04.2]} 44. Kf2
{[%clk 0:00:03.4]} 44... Rd8 {[%clk 0:00:04.3]} 45. Ke2 {[%clk 0:00:03]} 45...
Nf4+ {[%clk 0:00:04.1]} 46. Ke3 {[%clk 0:00:03.6]} 46... Ng2+ {[%clk 0:00:04.1]}
47. Ke2 {[%clk 0:00:03.9]} 47... Nxh4 {[%clk 0:00:03.3]} 48. Rb4 {[%clk
0:00:04.4]} 48... Rd4 {[%clk 0:00:03.2]} 49. e5 {[%clk 0:00:03]} 49... Ng2
{[%clk 0:00:02.1]} 50. Rb7+ {[%clk 0:00:02.6]} 50... Ke6 {[%clk 0:00:02.5]} 51.
Bxg6 {[%clk 0:00:02.6]} 51... Nf4+ {[%clk 0:00:02.1]} 52. Ke3 {[%clk 0:00:03.2]}
1-0

[Event "Late-Titled-Tuesday-Blitz-January-23-2024"]
[Site "Chess.com"]
[Date "2024.01.23"]
[Round "7"]
[White "ValeriyGrinev"]
[Black "Arifarsky"]
[Result "1/2-1/2"]
[WhiteElo "2538"]
[BlackElo "2693"]
[TimeControl "180+1"]
[EndTime "15:15:37 PST"]
[Termination "Game drawn - insufficient material"]

1. e4 {[%clk 0:02:59.5]} 1... e5 {[%clk 0:03:00.2]} 2. Nf3 {[%clk 0:02:59.9]}
2... Nc6 {[%clk 0:03:00.6]} 3. Bb5 {[%clk 0:03:00.3]} 3... Nf6 {[%clk
0:03:00.7]} 4. O-O {[%clk 0:02:58.9]} 4... Be7 {[%clk 0:02:57]} 5. Re1 {[%clk
0:02:58.6]} 5... d6 {[%clk 0:02:49.1]} 6. c3 {[%clk 0:02:53.8]} 6... a6 {[%clk
0:02:45.3]} 7. Bf1 {[%clk 0:02:52.8]} 7... O-O {[%clk 0:02:44.4]} 8. h3 {[%clk
0:02:52.9]} 8... d5 {[%clk 0:02:22.8]} 9. exd5 {[%clk 0:02:52.1]} 9... Qxd5
{[%clk 0:02:23.7]} 10. d3 {[%clk 0:02:51.3]} 10... h6 {[%clk 0:02:20.5]} 11.
Nbd2 {[%clk 0:02:50.7]} 11... Bc5 {[%clk 0:02:04.7]} 12. Ne4 {[%clk 0:02:50]}
12... Nxe4 {[%clk 0:02:01.9]} 13. dxe4 {[%clk 0:02:50.9]} 13... Qxd1 {[%clk
0:02:00.9]} 14. Rxd1 {[%clk 0:02:51.8]} 14... Be6 {[%clk 0:02:01.6]} 15. Be3
{[%clk 0:02:48.4]} 15... Bxe3 {[%clk 0:02:00.5]} 16. fxe3 {[%clk 0:02:49.3]}
16... Rfd8 {[%clk 0:02:01.1]} 17. Kf2 {[%clk 0:02:48.7]} 17... Rxd1 {[%clk
0:01:54.4]} 18. Rxd1 {[%clk 0:02:49.6]} 18... Bxa2 {[%clk 0:01:53.3]} 19. c4
{[%clk 0:02:50.2]} 19... Kf8 {[%clk 0:01:37]} 20. Nd2 {[%clk 0:02:38.8]} 20...
Rd8 {[%clk 0:01:28.5]} 21. Ke1 {[%clk 0:02:38.1]} 21... Nb4 {[%clk 0:01:26.3]}
22. Be2 {[%clk 0:02:31.7]} 22... Ke7 {[%clk 0:01:19.4]} 23. Rc1 {[%clk
0:02:27.4]} 23... c5 {[%clk 0:01:08.8]} 24. Rc3 {[%clk 0:02:24.5]} 24... b6
{[%clk 0:00:58.9]} 25. Kd1 {[%clk 0:02:23.8]} 25... Kd6 {[%clk 0:00:50.6]} 26.
b3 {[%clk 0:02:10.8]} 26... Kc6 {[%clk 0:00:49.7]} 27. Kc1 {[%clk 0:02:10]}
27... a5 {[%clk 0:00:43.3]} 28. Nf3 {[%clk 0:02:07]} 28... f6 {[%clk 0:00:41.4]}
29. Nh4 {[%clk 0:02:05.2]} 29... Ra8 {[%clk 0:00:29.6]} 30. Nf5 {[%clk
0:02:04.5]} 30... Ra7 {[%clk 0:00:30.1]} 31. Bh5 {[%clk 0:01:55]} 31... a4
{[%clk 0:00:27.8]} 32. Be8+ {[%clk 0:01:54.8]} 32... Kc7 {[%clk 0:00:23.5]} 33.
Bxa4 {[%clk 0:01:53.9]} 33... Kd8 {[%clk 0:00:20]} 34. Kb2 {[%clk 0:01:51]}
34... h5 {[%clk 0:00:19.7]} 35. Rc2 {[%clk 0:01:33.3]} 35... g6 {[%clk 0:00:18]}
36. Rd2+ {[%clk 0:01:32.9]} 36... Kc8 {[%clk 0:00:16]} 37. Nd6+ {[%clk
0:01:33.4]} 37... Kb8 {[%clk 0:00:13.4]} 38. Nb5 {[%clk 0:01:33.4]} 38... Rxa4
{[%clk 0:00:11]} 39. bxa4 {[%clk 0:01:33.1]} 39... Bxc4 {[%clk 0:00:11.2]} 40.
Rd6 {[%clk 0:01:31]} 40... Bf1 {[%clk 0:00:07.2]} 41. Rxb6+ {[%clk 0:01:30]}
41... Kc8 {[%clk 0:00:07.7]} 42. Rxf6 {[%clk 0:01:30.7]} 42... Bxg2 {[%clk
0:00:07.4]} 43. h4 {[%clk 0:01:29.2]} 43... Kd8 {[%clk 0:00:06.7]} 44. Rxg6
{[%clk 0:01:27.5]} 44... Bxe4 {[%clk 0:00:06.9]} 45. Rg5 {[%clk 0:01:27.2]}
45... Bf3 {[%clk 0:00:06.5]} 46. Kc3 {[%clk 0:01:26.4]} 46... Nc6 {[%clk
0:00:06]} 47. a5 {[%clk 0:01:13.8]} 47... Nxa5 {[%clk 0:00:04.1]} 48. Rxe5
{[%clk 0:01:13.7]} 48... Nb7 {[%clk 0:00:02]} 49. e4 {[%clk 0:01:11]} 49... Bg4
{[%clk 0:00:02.4]} 50. Rd5+ {[%clk 0:01:09.1]} 50... Ke7 {[%clk 0:00:02.1]} 51.
Kd3 {[%clk 0:01:02.3]} 51... c4+ {[%clk 0:00:01.2]} 52. Kd4 {[%clk 0:01:00.7]}
52... Na5 {[%clk 0:00:01.8]} 53. Re5+ {[%clk 0:01:00.3]} 53... Kf6 {[%clk
0:00:02.1]} 54. Rc5 {[%clk 0:01:00.1]} 54... Nb3+ {[%clk 0:00:01.9]} 55. Kxc4
{[%clk 0:01:00.1]} 55... Nxc5 {[%clk 0:00:02.8]} 56. Kxc5 {[%clk 0:01:00.7]}
56... Ke5 {[%clk 0:00:03.7]} 57. Nc3 {[%clk 0:00:59.6]} 57... Kf4 {[%clk
0:00:03.6]} 58. Kd4 {[%clk 0:00:59.7]} 58... Kg3 {[%clk 0:00:04.1]} 59. Ke3
{[%clk 0:00:57.6]} 59... Kxh4 {[%clk 0:00:04.5]} 60. Kf4 {[%clk 0:00:58.3]}
60... Kh3 {[%clk 0:00:05.2]} 61. e5 {[%clk 0:00:56.5]} 61... Kg2 {[%clk
0:00:05.2]} 62. Ne4 {[%clk 0:00:57.2]} 62... Be6 {[%clk 0:00:04.4]} 63. Nc5
{[%clk 0:00:55.5]} 63... Bd5 {[%clk 0:00:04.5]} 64. Kg5 {[%clk 0:00:51.6]} 64...
Kg3 {[%clk 0:00:03.4]} 65. Kxh5 {[%clk 0:00:51.7]} 65... Kf4 {[%clk 0:00:03.7]}
66. Nd3+ {[%clk 0:00:51.3]} 66... Ke4 {[%clk 0:00:04.2]} 67. e6 {[%clk
0:00:46.5]} 67... Bxe6 {[%clk 0:00:04.2]} 1/2-1/2

[Event "Late-Titled-Tuesday-Blitz-January-23-2024"]
[Site "Chess.com"]
[Date "2024.01.23"]
[Round "7"]
[White "katharinareinecke"]
[Black "gxbg2000"]
[Result "0-1"]
[WhiteElo "1996"]
[BlackElo "2129"]
[TimeControl "180+1"]
[EndTime "15:15:38 PST"]
[Termination "gxbg2000 won on time"]

1. d4 {[%clk 0:03:00.9]} 1... d5 {[%clk 0:02:56.1]} 2. c4 {[%clk 0:03:00.8]}
2... c6 {[%clk 0:02:55.4]} 3. Nf3 {[%clk 0:03:00.9]} 3... Nf6 {[%clk 0:02:54.7]}
4. g3 {[%clk 0:03:00.5]} 4... Bg4 {[%clk 0:02:52.6]} 5. Bg2 {[%clk 0:03:00.6]}
5... e6 {[%clk 0:02:52.9]} 6. O-O {[%clk 0:02:59.9]} 6... Nbd7 {[%clk
0:02:51.9]} 7. Nc3 {[%clk 0:03:00]} 7... Bd6 {[%clk 0:02:48.5]} 8. b3 {[%clk
0:02:59.9]} 8... O-O {[%clk 0:02:47.8]} 9. Bb2 {[%clk 0:02:59.8]} 9... h6 {[%clk
0:02:44.1]} 10. Nd2 {[%clk 0:02:58.3]} 10... Bh5 {[%clk 0:02:32.9]} 11. f3
{[%clk 0:02:54.5]} 11... Bg6 {[%clk 0:02:31.7]} 12. e4 {[%clk 0:02:46.1]} 12...
dxe4 {[%clk 0:02:22.8]} 13. fxe4 {[%clk 0:02:45.5]} 13... e5 {[%clk 0:02:21.5]}
14. d5 {[%clk 0:02:38.9]} 14... Qe7 {[%clk 0:02:13.7]} 15. Kh1 {[%clk
0:02:11.1]} 15... Rad8 {[%clk 0:02:08.3]} 16. Qe2 {[%clk 0:02:07.8]} 16... Bh5
{[%clk 0:02:05.2]} 17. Bf3 {[%clk 0:02:02.5]} 17... Bg6 {[%clk 0:02:00.7]} 18.
a3 {[%clk 0:01:59.8]} 18... a6 {[%clk 0:01:51.4]} 19. b4 {[%clk 0:01:59.5]}
19... cxd5 {[%clk 0:01:47.2]} 20. exd5 {[%clk 0:01:48.7]} 20... b6 {[%clk
0:01:38.8]} 21. Nce4 {[%clk 0:01:41.2]} 21... Nxe4 {[%clk 0:01:34.8]} 22. Nxe4
{[%clk 0:01:41.1]} 22... Bxe4 {[%clk 0:01:33.8]} 23. Bxe4 {[%clk 0:01:36.2]}
23... Rc8 {[%clk 0:01:23.4]} 24. Bd3 {[%clk 0:01:32]} 24... a5 {[%clk
0:01:14.4]} 25. bxa5 {[%clk 0:01:25.9]} 25... bxa5 {[%clk 0:01:14]} 26. Qe4
{[%clk 0:01:14.6]} 26... g6 {[%clk 0:01:07.7]} 27. Bc3 {[%clk 0:00:57]} 27...
Nc5 {[%clk 0:01:04.7]} 28. Qe2 {[%clk 0:00:53.5]} 28... Nxd3 {[%clk 0:01:04.8]}
29. Qxd3 {[%clk 0:00:53.6]} 29... Qc7 {[%clk 0:01:00.4]} 30. Rfe1 {[%clk
0:00:39.9]} 30... Rfe8 {[%clk 0:00:56]} 31. Qd2 {[%clk 0:00:36.5]} 31... Qxc4
{[%clk 0:00:48.3]} 32. Bxa5 {[%clk 0:00:35.8]} 32... Qa4 {[%clk 0:00:40.1]} 33.
Bb4 {[%clk 0:00:33.1]} 33... Rcd8 {[%clk 0:00:30.3]} 34. Qxh6 {[%clk 0:00:25]}
34... Bxb4 {[%clk 0:00:27.5]} 35. axb4 {[%clk 0:00:24.4]} 35... Qxb4 {[%clk
0:00:27.6]} 36. Rad1 {[%clk 0:00:20.5]} 36... Rxd5 {[%clk 0:00:24.8]} 37. Qc1
{[%clk 0:00:15]} 37... Qb7 {[%clk 0:00:24.2]} 38. Rxd5 {[%clk 0:00:14.3]} 38...
Qxd5+ {[%clk 0:00:23.8]} 39. Kg1 {[%clk 0:00:14.1]} 39... e4 {[%clk 0:00:23.3]}
40. Qe3 {[%clk 0:00:13.9]} 40... f5 {[%clk 0:00:20.4]} 41. Re2 {[%clk
0:00:14.2]} 41... Qd1+ {[%clk 0:00:20]} 42. Kf2 {[%clk 0:00:13.9]} 42... Rd8
{[%clk 0:00:19.5]} 43. Qg5 {[%clk 0:00:12.7]} 43... Kf7 {[%clk 0:00:16]} 44. Qh6
{[%clk 0:00:11.4]} 44... Qd4+ {[%clk 0:00:15.7]} 45. Kg2 {[%clk 0:00:10.9]}
45... Qd5 {[%clk 0:00:12.5]} 46. Qh7+ {[%clk 0:00:10.8]} 46... Kf6 {[%clk
0:00:12.8]} 47. Qh4+ {[%clk 0:00:10]} 47... Kg7 {[%clk 0:00:13]} 48. Qf4 {[%clk
0:00:07.8]} 48... e3+ {[%clk 0:00:13]} 49. Kf1 {[%clk 0:00:05.3]} 49... Qd1+
{[%clk 0:00:12]} 50. Re1 {[%clk 0:00:05.4]} 50... Qd3+ {[%clk 0:00:11.7]} 51.
Re2 {[%clk 0:00:05.1]} 51... Re8 {[%clk 0:00:11.6]} 52. Qc7+ {[%clk 0:00:03.5]}
52... Kf6 {[%clk 0:00:10]} 53. Qc6+ {[%clk 0:00:03]} 53... Re6 {[%clk
0:00:09.9]} 0-1

[Event "Late-Titled-Tuesday-Blitz-January-23-2024"]
[Site "Chess.com"]
[Date "2024.01.23"]
[Round "7"]
[White "Hirna2005"]
[Black "rychessmaster1"]
[Result "0-1"]
[WhiteElo "2315"]
[BlackElo "2733"]
[TimeControl "180+1"]
[EndTime "15:15:39 PST"]
[Termination "rychessmaster1 won on time"]

1. e4 {[%clk 0:03:00.9]} 1... c6 {[%clk 0:02:57.1]} 2. Nc3 {[%clk 0:02:59.9]}
2... d5 {[%clk 0:02:57.4]} 3. Nf3 {[%clk 0:02:59.7]} 3... dxe4 {[%clk
0:02:57.6]} 4. Nxe4 {[%clk 0:02:59.5]} 4... Nf6 {[%clk 0:02:58.3]} 5. Qe2 {[%clk
0:02:59.6]} 5... Nxe4 {[%clk 0:02:58.8]} 6. Qxe4 {[%clk 0:02:59.4]} 6... Qa5
{[%clk 0:02:59]} 7. Bc4 {[%clk 0:02:55.9]} 7... Bf5 {[%clk 0:02:59.1]} 8. Qf4
{[%clk 0:02:54]} 8... e6 {[%clk 0:02:59.4]} 9. O-O {[%clk 0:02:41.9]} 9... Nd7
{[%clk 0:02:55.2]} 10. d3 {[%clk 0:02:40.1]} 10... Be7 {[%clk 0:02:54.5]} 11.
Bd2 {[%clk 0:02:37.9]} 11... Qd8 {[%clk 0:02:54.7]} 12. Bc3 {[%clk 0:02:36.7]}
12... O-O {[%clk 0:02:51.4]} 13. Rfe1 {[%clk 0:02:28.3]} 13... Bf6 {[%clk
0:02:44.3]} 14. Ne5 {[%clk 0:02:14.7]} 14... Nb6 {[%clk 0:02:36.8]} 15. Bb3
{[%clk 0:02:12.8]} 15... Nd5 {[%clk 0:02:37.1]} 16. Bxd5 {[%clk 0:02:04.9]}
16... cxd5 {[%clk 0:02:34.9]} 17. Bd4 {[%clk 0:01:58.6]} 17... Rc8 {[%clk
0:02:28.8]} 18. Rac1 {[%clk 0:01:48.9]} 18... Bg5 {[%clk 0:02:07.5]} 19. Qg3
{[%clk 0:01:44.5]} 19... f6 {[%clk 0:02:05.8]} 20. Ng4 {[%clk 0:01:32.3]} 20...
Bxc1 {[%clk 0:01:42.5]} 21. Rxc1 {[%clk 0:01:30.7]} 21... Bxg4 {[%clk
0:01:15.4]} 22. Qxg4 {[%clk 0:01:29.5]} 22... e5 {[%clk 0:01:13.7]} 23. Bxa7
{[%clk 0:01:20.1]} 23... Qa5 {[%clk 0:01:05.3]} 24. Qe6+ {[%clk 0:01:15.7]}
24... Kh8 {[%clk 0:01:05.3]} 25. Bb6 {[%clk 0:01:07.4]} 25... Rxc2 {[%clk
0:00:51]} 26. Rf1 {[%clk 0:00:57.7]} 26... Qxa2 {[%clk 0:00:50.4]} 27. Qe7
{[%clk 0:00:44.5]} 27... Rg8 {[%clk 0:00:45.9]} 28. b4 {[%clk 0:00:37.8]} 28...
Qa6 {[%clk 0:00:43.4]} 29. Bc5 {[%clk 0:00:34.4]} 29... h6 {[%clk 0:00:37.1]}
30. d4 {[%clk 0:00:24.2]} 30... e4 {[%clk 0:00:32.4]} 31. h4 {[%clk 0:00:20.6]}
31... Qc6 {[%clk 0:00:18.4]} 32. h5 {[%clk 0:00:18.7]} 32... Qe8 {[%clk
0:00:16]} 33. Qxb7 {[%clk 0:00:17.5]} 33... Qxh5 {[%clk 0:00:16.7]} 34. Qc6
{[%clk 0:00:15.6]} 34... e3 {[%clk 0:00:13.2]} 35. fxe3 {[%clk 0:00:15.1]} 35...
Qg4 {[%clk 0:00:12.7]} 36. Rf2 {[%clk 0:00:15.1]} 36... Rc1+ {[%clk 0:00:13]}
37. Rf1 {[%clk 0:00:14.4]} 37... Rc2 {[%clk 0:00:08.6]} 38. Rf2 {[%clk
0:00:14.8]} 38... Qd1+ {[%clk 0:00:08.5]} 39. Rf1 {[%clk 0:00:14.1]} 39... Qe2
{[%clk 0:00:08.7]} 40. Qxd5 {[%clk 0:00:12.3]} 40... Qxe3+ {[%clk 0:00:09.3]}
41. Kh1 {[%clk 0:00:11.8]} 41... Re8 {[%clk 0:00:08.8]} 42. b5 {[%clk
0:00:11.3]} 42... Qg3 {[%clk 0:00:06.8]} 43. b6 {[%clk 0:00:10]} 43... Ree2
{[%clk 0:00:06.1]} 44. b7 {[%clk 0:00:08.4]} 44... Rxg2 {[%clk 0:00:06.4]} 45.
b8=Q+ {[%clk 0:00:06]} 45... Qxb8 {[%clk 0:00:06.1]} 46. Qxg2 {[%clk 0:00:06.9]}
46... Rxg2 {[%clk 0:00:05.9]} 47. Kxg2 {[%clk 0:00:07.5]} 47... h5 {[%clk
0:00:05.5]} 48. Rf5 {[%clk 0:00:07.3]} 48... Qb2+ {[%clk 0:00:04.6]} 49. Kf3
{[%clk 0:00:07.1]} 49... Qc3+ {[%clk 0:00:05.1]} 50. Ke4 {[%clk 0:00:07.4]}
50... Qc2+ {[%clk 0:00:05.2]} 51. Kf4 {[%clk 0:00:07.9]} 51... Qe2 {[%clk
0:00:05.7]} 52. Rd5 {[%clk 0:00:04.2]} 52... Qg4+ {[%clk 0:00:06.1]} 53. Ke3
{[%clk 0:00:04.6]} 53... h4 {[%clk 0:00:06.5]} 54. Bd6 {[%clk 0:00:03.3]} 54...
Kh7 {[%clk 0:00:06.6]} 55. Bf4 {[%clk 0:00:02]} 55... g5 {[%clk 0:00:06.3]} 0-1

[Event "Late-Titled-Tuesday-Blitz-January-23-2024"]
[Site "Chess.com"]
[Date "2024.01.23"]
[Round "7"]
[White "BogdanDeac"]
[Black "LevonAronian"]
[Result "1-0"]
[WhiteElo "3088"]
[BlackElo "3105"]
[TimeControl "180+1"]
[EndTime "15:15:43 PST"]
[Termination "BogdanDeac won on time"]

1. d4 {[%clk 0:03:00.9]} 1... Nf6 {[%clk 0:02:59.7]} 2. c4 {[%clk 0:03:00.7]}
2... c5 {[%clk 0:03:00.1]} 3. e3 {[%clk 0:02:55.6]} 3... g6 {[%clk 0:02:54]} 4.
dxc5 {[%clk 0:02:50]} 4... Na6 {[%clk 0:02:48.6]} 5. Nc3 {[%clk 0:02:28.1]} 5...
Bg7 {[%clk 0:02:45.9]} 6. e4 {[%clk 0:02:27.2]} 6... Nxc5 {[%clk 0:02:45]} 7. f3
{[%clk 0:02:24.6]} 7... O-O {[%clk 0:02:43.3]} 8. Be3 {[%clk 0:02:24.1]} 8... d6
{[%clk 0:02:41.4]} 9. Qd2 {[%clk 0:02:22.3]} 9... Be6 {[%clk 0:02:37.8]} 10. Rc1
{[%clk 0:02:21.3]} 10... a6 {[%clk 0:02:34.5]} 11. b3 {[%clk 0:02:17.3]} 11...
b5 {[%clk 0:02:34.1]} 12. cxb5 {[%clk 0:02:11.3]} 12... axb5 {[%clk 0:02:28.9]}
13. Bxb5 {[%clk 0:02:08.4]} 13... Qa5 {[%clk 0:00:52.8]} 14. Nge2 {[%clk
0:02:06]} 14... Rfb8 {[%clk 0:00:47.8]} 15. Nd4 {[%clk 0:02:01.7]} 15... Nfxe4
{[%clk 0:00:47.6]} 16. fxe4 {[%clk 0:01:58.4]} 16... Bxd4 {[%clk 0:00:47.2]} 17.
Bxd4 {[%clk 0:01:23.2]} 17... Rxb5 {[%clk 0:00:46.7]} 18. Nxb5 {[%clk
0:00:37.2]} 18... Qxb5 {[%clk 0:00:46.7]} 19. Bxc5 {[%clk 0:00:36.4]} 19... dxc5
{[%clk 0:00:47.6]} 20. a4 {[%clk 0:00:35.5]} 20... Qxb3 {[%clk 0:00:42.2]} 21.
O-O {[%clk 0:00:34.2]} 21... Qxa4 {[%clk 0:00:35]} 22. Qe3 {[%clk 0:00:22]}
22... c4 {[%clk 0:00:32.7]} 23. Qd4 {[%clk 0:00:21.9]} 23... Qa7 {[%clk
0:00:27.6]} 24. Qxa7 {[%clk 0:00:20.1]} 24... Rxa7 {[%clk 0:00:27.6]} 25. Ra1
{[%clk 0:00:20.4]} 25... Rc7 {[%clk 0:00:26.5]} 26. Rfc1 {[%clk 0:00:20.2]}
26... Kg7 {[%clk 0:00:23]} 27. Kf2 {[%clk 0:00:19.7]} 27... Rc5 {[%clk
0:00:20.5]} 28. Ke3 {[%clk 0:00:18.7]} 28... Rh5 {[%clk 0:00:19.3]} 29. h3
{[%clk 0:00:18.4]} 29... Rg5 {[%clk 0:00:19.6]} 30. Kf3 {[%clk 0:00:18.6]} 30...
h5 {[%clk 0:00:18.9]} 31. Rab1 {[%clk 0:00:15.3]} 31... h4 {[%clk 0:00:17]} 32.
Kf2 {[%clk 0:00:12.3]} 32... Re5 {[%clk 0:00:15.7]} 33. Re1 {[%clk 0:00:11.5]}
33... g5 {[%clk 0:00:14.2]} 34. Kf3 {[%clk 0:00:11]} 34... f6 {[%clk 0:00:13]}
35. Rec1 {[%clk 0:00:09.6]} 35... Bf7 {[%clk 0:00:12]} 36. Ra1 {[%clk
0:00:07.2]} 36... Be6 {[%clk 0:00:03.3]} 37. Ra7 {[%clk 0:00:06.3]} 37... Kf7
{[%clk 0:00:03.7]} 38. Raa1 {[%clk 0:00:05.4]} 38... Rc5 {[%clk 0:00:02.4]} 39.
Rc3 {[%clk 0:00:04.3]} 39... Bd7 {[%clk 0:00:02.6]} 40. Rac1 {[%clk 0:00:03.9]}
40... Bb5 {[%clk 0:00:02.9]} 41. Ke3 {[%clk 0:00:04]} 41... Re5 {[%clk
0:00:02.8]} 42. Kd4 {[%clk 0:00:04.2]} 42... Bc6 {[%clk 0:00:02.9]} 43. Re3
{[%clk 0:00:03.5]} 43... Bb5 {[%clk 0:00:02.2]} 44. Rb1 {[%clk 0:00:03.7]} 44...
Bc6 {[%clk 0:00:01.1]} 45. Rb4 {[%clk 0:00:02.8]} 45... Bb5 {[%clk 0:00:01.1]}
46. Rb1 {[%clk 0:00:02.8]} 46... Ba6 {[%clk 0:00:01.5]} 47. Ra1 {[%clk 0:00:03]}
47... Bb5 {[%clk 0:00:01.9]} 48. Ra5 {[%clk 0:00:03.6]} 48... Kg6 {[%clk
0:00:01.9]} 49. Rc3 {[%clk 0:00:03.6]} 49... Kh5 {[%clk 0:00:01.7]} 50. Rc1
{[%clk 0:00:03.4]} 50... g4 {[%clk 0:00:02.2]} 51. Rb1 {[%clk 0:00:02.7]} 51...
Bd7 {[%clk 0:00:01.6]} 52. Ra7 {[%clk 0:00:01.4]} 1-0